[Event "MČR juniorů a juniorek v rapid šachu 2023"]
[Site "Czech Republic"]
[Date "2023.09.23"]
[Round "5.25"]
[White "Beran, Jakub"]
[Black "Pejrimovska, Viola Ruby"]
[Result "0-1"]
[TimeControl "20 min + 5 sec per move"]
[WhiteFideId "23727071"]
[BlackFideId "23709529"]
[WhiteElo "1645"]
[BlackElo "1581"]

1. c4 {[%clk 00:20:08]} {[%emt 00:00:01]} Nf6 {[%clk 00:20:09]} {[%emt
00:00:01]} 2. Nc3 {[%clk 00:20:11]} {[%emt 00:00:03]} g6 {[%clk 00:20:08]}
{[%emt 00:00:05]} 3. d4 {[%clk 00:20:10]} {[%emt 00:00:05]} Bg7 {[%clk
00:20:03]} {[%emt 00:00:11]} 4. e4 {[%clk 00:19:50]} {[%emt 00:00:25]} d6
{[%clk 00:20:06]} {[%emt 00:00:02]} 5. Nf3 {[%clk 00:19:44]} {[%emt 00:00:10]}
O-O {[%clk 00:20:09]} {[%emt 00:00:03]} 6. h3 {[%clk 00:19:31]} {[%emt
00:00:18]} e5 {[%clk 00:20:10]} {[%emt 00:00:04]} 7. dxe5 {[%clk 00:19:34]}
{[%emt 00:00:03]} dxe5 {[%clk 00:20:08]} {[%emt 00:00:06]} 8. Qxd8 {[%clk
00:19:36]} {[%emt 00:00:03]} Rxd8 {[%clk 00:20:08]} {[%emt 00:00:06]} 9. Bg5
{[%clk 00:19:31]} {[%emt 00:00:08]} c6 {[%clk 00:18:40]} {[%emt 00:01:34]} 10.
Nxe5 {[%clk 00:18:34]} {[%emt 00:01:03]} Re8 {[%clk 00:18:43]} {[%emt
00:00:02]} 11. f4 {[%clk 00:18:05]} {[%emt 00:00:33]} Nh5 {[%clk 00:17:30]}
{[%emt 00:01:17]} 12. g4 {[%clk 00:17:00]} {[%emt 00:01:10]} Ng3 {[%clk
00:17:32]} {[%emt 00:00:04]} 13. Rg1 {[%clk 00:16:59]} {[%emt 00:00:06]} Nxf1
{[%clk 00:17:17]} {[%emt 00:00:20]} 14. Kxf1 {[%clk 00:16:56]} {[%emt
00:00:08]} f6 {[%clk 00:17:06]} {[%emt 00:00:16]} 15. Nf3 {[%clk 00:16:43]}
{[%emt 00:00:18]} fxg5 {[%clk 00:16:56]} {[%emt 00:00:15]} 16. Nxg5 {[%clk
00:16:46]} {[%emt 00:00:02]} h6 {[%clk 00:16:27]} {[%emt 00:00:34]} 17. Nf3
{[%clk 00:16:42]} {[%emt 00:00:09]} Bxc3 {[%clk 00:13:50]} {[%emt 00:02:43]} 18.
bxc3 {[%clk 00:16:45]} {[%emt 00:00:01]} Rxe4 {[%clk 00:13:53]} {[%emt
00:00:02]} 19. Rd1 {[%clk 00:16:36]} {[%emt 00:00:13]} Rxf4 {[%clk 00:12:10]}
{[%emt 00:01:48]} 20. Kg2 {[%clk 00:16:26]} {[%emt 00:00:16]} Nd7 {[%clk
00:10:43]} {[%emt 00:01:32]} 21. Rge1 {[%clk 00:16:21]} {[%emt 00:00:06]} Nc5
{[%clk 00:09:01]} {[%emt 00:01:51]} 22. Nh4 {[%clk 00:14:21]} {[%emt 00:02:03]}
Be6 {[%clk 00:07:46]} {[%emt 00:01:22]} 23. Rd4 {[%clk 00:13:15]} {[%emt
00:01:07]} Rxd4 {[%clk 00:06:33]} {[%emt 00:01:23]} 24. cxd4 {[%clk 00:13:18]}
{[%emt 00:00:02]} Nd3 {[%clk 00:06:31]} {[%emt 00:00:07]} 0-1

[Event "MČR juniorů a juniorek v rapid šachu 2023"]
[Site "Czech Republic"]
[Date "2023.09.23"]
[Round "5.26"]
[White "Janouskova, Adela"]
[Black "Pistej, Tomas"]
[Result "1-0"]
[TimeControl "20 min + 5 sec per move"]
[WhiteFideId "23709804"]
[BlackFideId "23750740"]
[WhiteElo "1442"]
[BlackElo "1640"]

1. e4 {[%clk 00:20:08]} {[%emt 00:00:01]} e5 {[%clk 00:20:08]} {[%emt
00:00:03]} 2. Nf3 {[%clk 00:20:11]} {[%emt 00:00:01]} Nc6 {[%clk 00:20:09]}
{[%emt 00:00:04]} 3. d4 {[%clk 00:20:00]} {[%emt 00:00:16]} exd4 {[%clk
00:20:06]} {[%emt 00:00:07]} 4. c3 {[%clk 00:20:03]} {[%emt 00:00:03]} dxc3
{[%clk 00:19:24]} {[%emt 00:00:48]} 5. Nxc3 {[%clk 00:20:05]} {[%emt 00:00:03]}
Bb4 {[%clk 00:19:11]} {[%emt 00:00:17]} 6. Bc4 {[%clk 00:20:06]} {[%emt
00:00:04]} Bxc3+ {[%clk 00:18:36]} {[%emt 00:00:40]} 7. bxc3 {[%clk 00:20:09]}
{[%emt 00:00:02]} Qe7 {[%clk 00:17:56]} {[%emt 00:00:44]} 8. O-O {[%clk
00:19:45]} {[%emt 00:00:29]} d6 {[%clk 00:17:04]} {[%emt 00:00:58]} 9. Ng5
{[%clk 00:18:40]} {[%emt 00:01:10]} Be6 {[%clk 00:16:39]} {[%emt 00:00:30]} 10.
Nxe6 {[%clk 00:17:38]} {[%emt 00:01:08]} fxe6 {[%clk 00:16:31]} {[%emt
00:00:12]} 11. Qb3 {[%clk 00:17:31]} {[%emt 00:00:12]} Nd8 {[%clk 00:12:08]}
{[%emt 00:04:28]} 12. Re1 {[%clk 00:16:07]} {[%emt 00:01:28]} Nf6 {[%clk
00:11:39]} {[%emt 00:00:34]} 13. Bg5 {[%clk 00:16:01]} {[%emt 00:00:11]} h6
{[%clk 00:11:35]} {[%emt 00:00:09]} 14. Bh4 {[%clk 00:15:59]} {[%emt 00:00:06]}
g5 {[%clk 00:11:14]} {[%emt 00:00:27]} 15. Bg3 {[%clk 00:16:01]} {[%emt
00:00:03]} e5 {[%clk 00:10:59]} {[%emt 00:00:19]} 16. Rad1 {[%clk 00:14:38]}
{[%emt 00:01:29]} a6 {[%clk 00:10:05]} {[%emt 00:00:59]} 17. a4 {[%clk
00:14:33]} {[%emt 00:00:10]} b6 {[%clk 00:09:46]} {[%emt 00:00:24]} 18. Qc2
{[%clk 00:09:44]} {[%emt 00:04:55]} Nb7 {[%clk 00:09:13]} {[%emt 00:00:37]} 19.
f3 {[%clk 00:09:08]} {[%emt 00:00:42]} Nc5 {[%clk 00:08:26]} {[%emt 00:00:51]}
20. Bf2 {[%clk 00:08:56]} {[%emt 00:00:17]} Nfd7 {[%clk 00:07:38]} {[%emt
00:00:54]} 21. Bd5 {[%clk 00:08:20]} {[%emt 00:00:40]} O-O-O {[%clk 00:06:29]}
{[%emt 00:01:13]} 22. a5 {[%clk 00:07:55]} {[%emt 00:00:31]} c6 {[%clk
00:03:05]} {[%emt 00:03:29]} 23. Bxc6 {[%clk 00:07:23]} {[%emt 00:00:37]} Kc7
{[%clk 00:02:53]} {[%emt 00:00:18]} 24. Bd5 {[%clk 00:06:45]} {[%emt 00:00:43]}
b5 {[%clk 00:02:10]} {[%emt 00:00:48]} 25. Rb1 {[%clk 00:06:28]} {[%emt
00:00:22]} Nf6 {[%clk 00:01:44]} {[%emt 00:00:31]} 26. c4 {[%clk 00:05:12]}
{[%emt 00:01:21]} Nxd5 {[%clk 00:01:40]} {[%emt 00:00:10]} 27. exd5 {[%clk
00:05:12]} {[%emt 00:00:04]} Rb8 {[%clk 00:01:28]} {[%emt 00:00:16]} 28. cxb5
{[%clk 00:05:04]} {[%emt 00:00:14]} Rxb5 {[%clk 00:01:15]} {[%emt 00:00:18]} 29.
Rxb5 {[%clk 00:05:04]} {[%emt 00:00:05]} axb5 {[%clk 00:01:16]} {[%emt
00:00:04]} 30. Rc1 {[%clk 00:04:16]} {[%emt 00:00:52]} Rb8 {[%clk 00:00:49]}
{[%emt 00:00:32]} 31. Bxc5 {[%clk 00:04:03]} {[%emt 00:00:18]} dxc5 {[%clk
00:00:51]} {[%emt 00:00:04]} 32. Qxc5+ {[%clk 00:04:03]} {[%emt 00:00:06]}
Qxc5+ {[%clk 00:00:53]} {[%emt 00:00:03]} 33. Rxc5+ {[%clk 00:04:04]} {[%emt
00:00:03]} Kd6 {[%clk 00:00:54]} {[%emt 00:00:04]} 34. Rc6+ {[%clk 00:03:47]}
{[%emt 00:00:22]} Kxd5 {[%clk 00:00:55]} {[%emt 00:00:04]} 35. Rxh6 {[%clk
00:03:49]} {[%emt 00:00:03]} b4 {[%clk 00:00:54]} {[%emt 00:00:06]} 36. Rh7
{[%clk 00:02:05]} {[%emt 00:01:49]} b3 {[%clk 00:00:38]} {[%emt 00:00:20]} 37.
Rd7+ {[%clk 00:01:50]} {[%emt 00:00:21]} Kc4 {[%clk 00:00:32]} {[%emt
00:00:11]} 38. Rc7+ {[%clk 00:01:00]} {[%emt 00:00:55]} Kb4 {[%clk 00:00:32]}
{[%emt 00:00:05]} 39. Rc1 {[%clk 00:00:27]} {[%emt 00:00:38]} Ka3 {[%clk
00:00:32]} {[%emt 00:00:05]} 40. a6 {[%clk 00:00:18]} {[%emt 00:00:14]} Ra8
{[%clk 00:00:32]} {[%emt 00:00:05]} 41. Kf2 {[%clk 00:00:17]} {[%emt 00:00:06]}
Rxa6 {[%clk 00:00:25]} {[%emt 00:00:12]} 42. Ra1+ {[%clk 00:00:20]} {[%emt
00:00:02]} Kb2 {[%clk 00:00:09]} {[%emt 00:00:21]} 43. Rxa6 {[%clk 00:00:23]}
{[%emt 00:00:03]} Kc2 {[%clk 00:00:00]} {[%emt 00:00:09]} 1-0

[Event "MČR juniorů a juniorek v rapid šachu 2023"]
[Site "Czech Republic"]
[Date "2023.09.23"]
[Round "5.27"]
[White "Halama, Tomas"]
[Black "Boff, Vojtech"]
[Result "0-1"]
[TimeControl "20 min + 5 sec per move"]
[WhiteFideId "397970"]
[BlackFideId "23733969"]
[WhiteElo "1306"]
[BlackElo "1632"]

1. c4 {[%clk 00:19:54]} {[%emt 00:00:15]} c5 {[%clk 00:20:08]} {[%emt
00:00:02]} 2. Nc3 {[%clk 00:19:55]} {[%emt 00:00:04]} Nc6 {[%clk 00:20:10]}
{[%emt 00:00:03]} 3. g3 {[%clk 00:19:56]} {[%emt 00:00:04]} Nf6 {[%clk
00:20:00]} {[%emt 00:00:15]} 4. Bg2 {[%clk 00:19:55]} {[%emt 00:00:06]} g6
{[%clk 00:19:57]} {[%emt 00:00:08]} 5. e3 {[%clk 00:19:54]} {[%emt 00:00:06]}
Bg7 {[%clk 00:19:59]} {[%emt 00:00:03]} 6. Nge2 {[%clk 00:19:55]} {[%emt
00:00:03]} d6 {[%clk 00:20:01]} {[%emt 00:00:04]} 7. O-O {[%clk 00:19:52]}
{[%emt 00:00:07]} O-O {[%clk 00:19:49]} {[%emt 00:00:18]} 8. b3 {[%clk
00:19:44]} {[%emt 00:00:13]} Bd7 {[%clk 00:19:38]} {[%emt 00:00:16]} 9. Bb2
{[%clk 00:19:45]} {[%emt 00:00:04]} a6 {[%clk 00:19:40]} {[%emt 00:00:03]} 10.
d4 {[%clk 00:19:33]} {[%emt 00:00:17]} cxd4 {[%clk 00:19:43]} {[%emt 00:00:02]}
11. Nxd4 {[%clk 00:19:25]} {[%emt 00:00:13]} Nxd4 {[%clk 00:19:45]} {[%emt
00:00:03]} 12. Qxd4 {[%clk 00:19:26]} {[%emt 00:00:04]} Bc6 {[%clk 00:19:13]}
{[%emt 00:00:37]} 13. Bxc6 {[%clk 00:19:17]} {[%emt 00:00:14]} bxc6 {[%clk
00:19:16]} {[%emt 00:00:02]} 14. Ne4 {[%clk 00:19:14]} {[%emt 00:00:08]} c5
{[%clk 00:19:16]} {[%emt 00:00:06]} 15. Nxf6+ {[%clk 00:19:11]} {[%emt
00:00:07]} Bxf6 {[%clk 00:19:19]} {[%emt 00:00:02]} 16. Qd2 {[%clk 00:19:12]}
{[%emt 00:00:04]} Bxb2 {[%clk 00:18:54]} {[%emt 00:00:30]} 17. Qxb2 {[%clk
00:19:15]} {[%emt 00:00:02]} Qb6 {[%clk 00:18:50]} {[%emt 00:00:09]} 18. Rfd1
{[%clk 00:19:00]} {[%emt 00:00:19]} Rab8 {[%clk 00:18:39]} {[%emt 00:00:17]} 19.
e4 {[%clk 00:18:54]} {[%emt 00:00:12]} a5 {[%clk 00:18:42]} {[%emt 00:00:02]}
20. e5 {[%clk 00:18:53]} {[%emt 00:00:05]} a4 {[%clk 00:18:42]} {[%emt
00:00:05]} 21. exd6 {[%clk 00:18:16]} {[%emt 00:00:42]} exd6 {[%clk 00:18:45]}
{[%emt 00:00:01]} 22. Rab1 {[%clk 00:18:11]} {[%emt 00:00:11]} axb3 {[%clk
00:18:48]} {[%emt 00:00:03]} 23. Qxb3 {[%clk 00:18:11]} {[%emt 00:00:05]} Qa6
{[%clk 00:18:43]} {[%emt 00:00:10]} 24. Qc2 {[%clk 00:17:53]} {[%emt 00:00:23]}
Ra8 {[%clk 00:18:38]} {[%emt 00:00:10]} 25. Rb2 {[%clk 00:16:13]} {[%emt
00:01:45]} Rfb8 {[%clk 00:18:21]} {[%emt 00:00:23]} 26. Rdb1 {[%clk 00:15:41]}
{[%emt 00:00:37]} Rxb2 {[%clk 00:18:24]} {[%emt 00:00:02]} 27. Rxb2 {[%clk
00:15:44]} {[%emt 00:00:02]} Qa4 {[%clk 00:17:36]} {[%emt 00:00:52]} 28. Qxa4
{[%clk 00:15:18]} {[%emt 00:00:31]} Rxa4 {[%clk 00:17:40]} {[%emt 00:00:01]} 29.
Rc2 {[%clk 00:15:22]} Kg7 {[%clk 00:17:33]} {[%emt 00:00:12]} 30. Kg2 {[%clk
00:15:25]} Kf6 {[%clk 00:17:36]} {[%emt 00:00:03]} 31. Kf3 {[%clk 00:15:27]}
{[%emt 00:00:03]} Ke5 {[%clk 00:17:18]} {[%emt 00:00:23]} 32. Ke3 {[%clk
00:15:29]} {[%emt 00:00:02]} Ra3+ {[%clk 00:17:21]} {[%emt 00:00:04]} 33. Kd2
{[%clk 00:14:49]} {[%emt 00:00:45]} Kd4 {[%clk 00:17:20]} {[%emt 00:00:06]} 34.
Ke2 {[%clk 00:14:39]} {[%emt 00:00:15]} Ra4 {[%clk 00:17:18]} {[%emt 00:00:07]}
35. Rd2+ {[%clk 00:14:26]} {[%emt 00:00:18]} Kxc4 {[%clk 00:17:20]} {[%emt
00:00:03]} 36. Rxd6 {[%clk 00:14:29]} {[%emt 00:00:02]} Ra7 {[%clk 00:17:23]}
{[%emt 00:00:02]} 37. Rd2 {[%clk 00:14:24]} {[%emt 00:00:10]} Re7+ {[%clk
00:17:08]} {[%emt 00:00:20]} 38. Kd1 {[%clk 00:14:23]} {[%emt 00:00:05]} Kb4
{[%clk 00:17:06]} {[%emt 00:00:08]} 39. Rc2 {[%clk 00:14:07]} {[%emt 00:00:21]}
c4 {[%clk 00:17:00]} {[%emt 00:00:11]} 40. a3+ {[%clk 00:14:09]} {[%emt
00:00:04]} Kb3 {[%clk 00:17:02]} {[%emt 00:00:02]} 41. Kd2 {[%clk 00:13:25]}
{[%emt 00:00:48]} Rd7+ {[%clk 00:16:50]} {[%emt 00:00:18]} 42. Kc1 {[%clk
00:13:25]} {[%emt 00:00:04]} c3 {[%clk 00:16:46]} {[%emt 00:00:10]} 43. a4
{[%clk 00:13:27]} {[%emt 00:00:02]} Re7 {[%clk 00:16:49]} {[%emt 00:00:03]} 44.
Kd1 {[%clk 00:13:03]} {[%emt 00:00:29]} Ra7 {[%clk 00:16:46]} {[%emt 00:00:08]}
45. Rc1 {[%clk 00:12:58]} {[%emt 00:00:10]} Rxa4 {[%clk 00:16:39]} {[%emt
00:00:12]} 46. Rb1+ {[%clk 00:12:48]} {[%emt 00:00:14]} Kc4 {[%clk 00:16:43]}
{[%emt 00:00:02]} 47. Rc1 {[%clk 00:12:39]} {[%emt 00:00:14]} Kd3 {[%clk
00:16:42]} {[%emt 00:00:06]} 48. f4 {[%clk 00:12:23]} {[%emt 00:00:21]} Ra2
{[%clk 00:16:45]} {[%emt 00:00:02]} 49. Ke1 {[%clk 00:09:44]} {[%emt 00:02:43]}
Rxh2 {[%clk 00:16:49]} {[%emt 00:00:03]} 50. Rd1+ {[%clk 00:09:37]} {[%emt
00:00:11]} Ke3 {[%clk 00:16:51]} {[%emt 00:00:03]} 0-1

[Event "MČR juniorů a juniorek v rapid šachu 2023"]
[Site "Czech Republic"]
[Date "2023.09.23"]
[Round "5.28"]
[White "Mikolas, Petr"]
[Black "Bela, Lukas"]
[Result "1-0"]
[TimeControl "20 min + 5 sec per move"]
[WhiteFideId "23713224"]
[BlackFideId "23738545"]
[WhiteElo "1514"]
[BlackElo "1297"]

1. e4 {[%clk 00:20:08]} {[%emt 00:00:01]} d6 {[%clk 00:19:52]} {[%emt
00:00:19]} 2. d4 {[%clk 00:20:11]} {[%emt 00:00:02]} f5 {[%clk 00:19:43]}
{[%emt 00:00:13]} 3. Nc3 {[%clk 00:19:55]} {[%emt 00:00:21]} Nf6 {[%clk
00:19:21]} {[%emt 00:00:27]} 4. Bd3 {[%clk 00:19:58]} {[%emt 00:00:02]} g6
{[%clk 00:19:11]} {[%emt 00:00:15]} 5. Bg5 {[%clk 00:18:59]} {[%emt 00:01:04]}
e5 {[%clk 00:18:44]} {[%emt 00:00:32]} 6. Nd5 {[%clk 00:17:44]} {[%emt
00:01:20]} Bg7 {[%clk 00:18:20]} {[%emt 00:00:29]} 7. exf5 {[%clk 00:17:23]}
{[%emt 00:00:27]} h6 {[%clk 00:18:04]} {[%emt 00:00:20]} 8. Bxf6 {[%clk
00:16:22]} {[%emt 00:01:06]} Bxf6 {[%clk 00:17:54]} {[%emt 00:00:16]} 9. fxg6
{[%clk 00:15:27]} {[%emt 00:00:59]} h5 {[%clk 00:16:52]} {[%emt 00:01:06]} 10.
Qf3 {[%clk 00:14:53]} {[%emt 00:00:39]} Nd7 {[%clk 00:16:23]} {[%emt 00:00:34]}
11. g7 {[%clk 00:14:47]} {[%emt 00:00:12]} Rh6 {[%clk 00:13:08]} {[%emt
00:03:19]} 12. g8=Q+ {[%clk 00:14:48]} {[%emt 00:00:05]} Nf8 {[%clk 00:13:10]}
{[%emt 00:00:04]} 13. Nxf6+ {[%clk 00:12:19]} {[%emt 00:02:34]} Rxf6 {[%clk
00:12:55]} {[%emt 00:00:20]} 14. Qxh5+ {[%clk 00:12:21]} {[%emt 00:00:02]} Ke7
{[%clk 00:12:25]} {[%emt 00:00:34]} 15. Qg7+ {[%clk 00:11:44]} {[%emt
00:00:42]} Ke6 {[%clk 00:12:24]} {[%emt 00:00:08]} 16. Bc4+ {[%clk 00:10:29]}
{[%emt 00:01:18]} 1-0

[Event "MČR juniorů a juniorek v rapid šachu 2023"]
[Site "Czech Republic"]
[Date "2023.09.23"]
[Round "5.29"]
[White "Macova, Marketa"]
[Black "Hruby, Filip"]
[Result "0-1"]
[TimeControl "20 min + 5 sec per move"]
[WhiteFideId "23715588"]
[BlackFideId "23721480"]
[WhiteElo "1228"]
[BlackElo "1460"]

1. e4 {[%clk 00:20:08]} {[%emt 00:00:02]} c6 {[%clk 00:20:09]} 2. d4 {[%clk
00:20:10]} {[%emt 00:00:04]} d5 {[%clk 00:20:13]} 3. exd5 {[%clk 00:20:08]}
{[%emt 00:00:07]} cxd5 {[%clk 00:20:17]} {[%emt 00:00:01]} 4. Nc3 {[%clk
00:20:10]} {[%emt 00:00:02]} Nf6 {[%clk 00:20:20]} {[%emt 00:00:02]} 5. Nf3
{[%clk 00:20:11]} {[%emt 00:00:03]} Nc6 {[%emt 00:00:04]} 6. Bg5 {[%clk
00:20:10]} {[%emt 00:00:05]} Bg4 {[%clk 00:20:07]} {[%emt 00:00:21]} 7. Be2
{[%clk 00:20:07]} {[%emt 00:00:07]} e6 {[%clk 00:20:11]} {[%emt 00:00:02]} 8.
O-O {[%clk 00:20:04]} {[%emt 00:00:08]} h6 {[%clk 00:20:07]} {[%emt 00:00:09]}
9. Bh4 {[%clk 00:19:36]} {[%emt 00:00:33]} Bxf3 {[%clk 00:19:31]} {[%emt
00:00:41]} 10. Bxf3 {[%clk 00:19:36]} {[%emt 00:00:05]} Qb6 {[%clk 00:19:33]}
{[%emt 00:00:03]} 11. Ne2 {[%clk 00:18:16]} {[%emt 00:01:24]} Qxb2 {[%clk
00:18:36]} {[%emt 00:01:02]} 12. Rb1 {[%clk 00:17:41]} {[%emt 00:00:40]} Qxa2
{[%clk 00:18:37]} {[%emt 00:00:05]} 13. Rxb7 {[%clk 00:17:42]} {[%emt
00:00:05]} Qa6 {[%clk 00:18:29]} {[%emt 00:00:11]} 14. Rb1 {[%clk 00:16:55]}
{[%emt 00:00:53]} Be7 {[%clk 00:18:06]} {[%emt 00:00:28]} 15. Re1 {[%clk
00:16:37]} {[%emt 00:00:23]} O-O {[%clk 00:17:55]} {[%emt 00:00:16]} 16. Bg3
{[%clk 00:11:56]} {[%emt 00:04:46]} Rac8 {[%clk 00:14:48]} {[%emt 00:03:12]} 17.
Nc3 {[%clk 00:08:08]} {[%emt 00:03:54]} Bb4 {[%clk 00:14:24]} {[%emt 00:00:28]}
18. Re3 {[%clk 00:07:24]} {[%emt 00:00:49]} Qa5 {[%clk 00:09:25]} {[%emt
00:04:58]} 19. Ra1 {[%clk 00:06:39]} {[%emt 00:00:56]} Qb6 {[%clk 00:09:03]}
{[%emt 00:00:27]} 20. Na4 {[%clk 00:05:43]} {[%emt 00:01:01]} Qxd4 {[%clk
00:06:59]} {[%emt 00:02:09]} 21. Rd3 {[%clk 00:03:57]} {[%emt 00:01:51]} Qc4
{[%clk 00:06:54]} {[%emt 00:00:08]} 22. Be2 {[%clk 00:02:55]} {[%emt 00:01:09]}
Qe4 {[%clk 00:06:38]} {[%emt 00:00:04]} 23. Bf3 {[%clk 00:02:05]} {[%emt
00:01:12]} Qg6 {[%clk 00:06:18]} {[%emt 00:00:14]} 24. c3 {[%clk 00:01:49]}
{[%emt 00:00:32]} Be7 {[%clk 00:06:06]} {[%emt 00:00:16]} 25. Rd2 {[%clk
00:01:17]} {[%emt 00:00:38]} Nd7 {[%clk 00:05:01]} {[%emt 00:01:10]} 26. Be2
{[%clk 00:00:53]} {[%emt 00:00:29]} Nc5 {[%clk 00:02:37]} {[%emt 00:02:28]} 27.
Nxc5 {[%clk 00:00:35]} {[%emt 00:00:25]} Bxc5 {[%clk 00:02:40]} {[%emt
00:00:02]} 28. Bb5 {[%clk 00:00:34]} {[%emt 00:00:05]} Qf6 {[%clk 00:01:31]}
{[%emt 00:01:13]} 29. Qb3 {[%clk 00:00:15]} {[%emt 00:00:26]} Rfd8 {[%clk
00:00:51]} {[%emt 00:00:44]} 30. Rc2 {[%clk 00:00:08]} {[%emt 00:00:12]} Rb8
{[%clk 00:00:37]} {[%emt 00:00:18]} 31. Qa4 {[%clk 00:00:10]} {[%emt 00:00:05]}
Ne7 {[%clk 00:00:30]} {[%emt 00:00:11]} 32. Rcc1 {[%clk 00:00:08]} {[%emt
00:00:07]} Nf5 {[%clk 00:00:27]} {[%emt 00:00:08]} 33. Bxb8 {[%clk 00:00:11]}
{[%emt 00:00:02]} Rxb8 {[%clk 00:00:27]} {[%emt 00:00:05]} 34. Bd3 {[%clk
00:00:14]} {[%emt 00:00:02]} Nh4 {[%clk 00:00:21]} {[%emt 00:00:10]} 35. Qc2
{[%clk 00:00:08]} {[%emt 00:00:11]} Bb6 {[%clk 00:00:15]} {[%emt 00:00:10]} 36.
Rab1 {[%clk 00:00:11]} {[%emt 00:00:04]} Rc8 {[%clk 00:00:15]} {[%emt
00:00:03]} 37. Qb2 {[%clk 00:00:11]} {[%emt 00:00:06]} Qg5 {[%clk 00:00:13]}
{[%emt 00:00:08]} 38. g3 {[%clk 00:00:12]} {[%emt 00:00:04]} Nf3+ {[%clk
00:00:13]} {[%emt 00:00:03]} 39. Kg2 {[%clk 00:00:14]} {[%emt 00:00:04]} Nh4+
{[%clk 00:00:11]} {[%emt 00:00:07]} 40. Kg1 {[%clk 00:00:17]} {[%emt 00:00:02]}
Ng6 {[%clk 00:00:12]} {[%emt 00:00:04]} 41. Qc2 {[%clk 00:00:11]} {[%emt
00:00:11]} Nf4 {[%clk 00:00:09]} {[%emt 00:00:08]} 42. Be2 {[%clk 00:00:08]}
{[%emt 00:00:08]} Ng6 {[%clk 00:00:08]} {[%emt 00:00:06]} 43. Bd3 {[%clk
00:00:13]} Ne7 {[%clk 00:00:08]} {[%emt 00:00:04]} 44. Bh7+ {[%clk 00:00:13]}
{[%emt 00:00:05]} Kh8 {[%clk 00:00:10]} {[%emt 00:00:03]} 45. Bd3 {[%clk
00:00:16]} {[%emt 00:00:03]} Nc6 {[%clk 00:00:10]} {[%emt 00:00:05]} 46. Bb5
{[%clk 00:00:18]} {[%emt 00:00:03]} Nd4 {[%clk 00:00:10]} {[%emt 00:00:03]} 47.
Qd3 {[%clk 00:00:19]} {[%emt 00:00:06]} Nf5 {[%clk 00:00:10]} {[%emt 00:00:04]}
48. Qe2 {[%clk 00:00:20]} {[%emt 00:00:04]} Nd6 {[%emt 00:00:07]} 49. Bd7
{[%clk 00:00:24]} Rc7 {[%clk 00:00:12]} {[%emt 00:00:01]} 50. Ba4 {[%clk
00:00:26]} {[%emt 00:00:03]} Ne4 {[%clk 00:00:10]} {[%emt 00:00:08]} 51. Rb3
{[%clk 00:00:20]} {[%emt 00:00:11]} Nxf2 {[%clk 00:00:11]} {[%emt 00:00:04]} 52.
Kg2 {[%clk 00:00:19]} {[%emt 00:00:05]} Qxc1 {[%clk 00:00:12]} {[%emt
00:00:04]} 53. Kf3 {[%clk 00:00:12]} {[%emt 00:00:12]} Qh1+ {[%clk 00:00:12]}
{[%emt 00:00:06]} 54. Kf4 {[%clk 00:00:13]} {[%emt 00:00:04]} Qe4+ {[%clk
00:00:12]} {[%emt 00:00:04]} 55. Qxe4 {[%clk 00:00:15]} {[%emt 00:00:04]} Nxe4
{[%clk 00:00:15]} {[%emt 00:00:01]} 56. Kf3 {[%clk 00:00:17]} {[%emt 00:00:03]}
Rxc3+ {[%clk 00:00:18]} {[%emt 00:00:02]} 57. Rxc3 {[%clk 00:00:19]} {[%emt
00:00:03]} Nxc3 {[%clk 00:00:22]} {[%emt 00:00:02]} 58. Be8 {[%clk 00:00:21]}
{[%emt 00:00:03]} Kg8 {[%clk 00:00:26]} 0-1